bitfinex/quotes_ETHUSD_20250726
["timestamp","ask_amount","ask_price","bid_price","bid_amount"]
[1753491970301,2.6866589,3722.1,3721.7,0.9048]
[1753491970509,2.68660135,3722.2,3721.8,0.9048]
[1753491970710,2.68666486,3722.1,3721.9,0.4692]
[1753491971007,2.68660853,3722.2,3721.9,0.9048]
[1753491971180,2.68666088,3722.1,3722.0,0.4692]
[1753491971807,2.68673221,3722.0,3721.7,0.4356]
[1753491972010,2.68673221,3722.0,3721.8,0.4692]
[1753491972597,2.68680007,3721.9,3721.5,0.55]
[1753491972795,2.68680007,3721.9,3721.7,0.55]
[1753491974010,2.68687194,3721.8,3721.7,0.55]
[1753491974710,2.68681096,3721.9,3721.7,1.0192]
[1753491974915,0.4589,3722.2,3721.7,0.55]
[1753491975118,2.6866628,3722.1,3721.8,0.4692]
[1753491975616,2.68673084,3722.0,3721.9,0.4692]
[1753491975916,2.68673084,3722.0,3721.7,1.4548]
[1753491976114,2.68673084,3722.0,3721.7,0.9856]
[1753491976318,4.1854,3722.4,3721.8,0.4692]
[1753491976617,4.1854,3722.4,3721.5,0.55]
[1753491976618,2.68687194,3721.8,3721.5,0.55]
[1753491976989,2.68687194,3721.8,3721.7,0.55]
[1753491977403,2.68681541,3721.9,3721.7,0.55]
[1753491977597,2.68681541,3721.9,3721.7,0.4692]
[1753491977810,2.68687194,3721.8,3721.7,0.4692]
[1753491980023,2.68678208,3722.0,3721.7,0.4692]
[1753491980519,2.68678208,3722.0,3721.8,0.4819]
[1753491981090,2.442,3722.3,3721.9,0.9442]
[1753491981320,5.12851259,3722.3,3722.0,0.9442]
[1753491981529,5.12851259,3722.3,3721.7,0.55]
[1753491981689,2.68646419,3722.4,3722.1,0.4819]
[1753491981890,2.68646419,3722.4,3722.1,0.9442]
[1753491982104,2.68651102,3722.3,3722.2,0.4623]
[1753491982393,2.68667203,3722.1,3721.7,0.55]
[1753491982887,2.68667203,3722.1,3721.9,0.55]
[1753491983090,2.68667203,3722.1,3721.9,1.0319]
[1753491983611,2.68672756,3722.0,3721.8,0.55]
[1753491983806,2.68672756,3722.0,3721.8,1.0319]
[1753491984312,2.68667508,3722.1,3721.8,1.0319]
[1753491984908,1.7506,3722.4,3721.8,0.55]
[1753491985216,2.68659123,3722.2,3721.8,1.0319]
[1753491985519,1.7506,3722.4,3721.9,0.4819]
[1753491985734,2.442,3722.4,3722.0,0.4623]
[1753491985887,2.68617659,3722.8,3722.2,0.55]
[1753491986092,2.68617659,3722.8,3722.3,0.4819]
[1753491986304,2.68634714,3722.6,3722.4,0.4819]
[1753491986621,2.68636668,3722.5,3722.4,0.4819]
[1753491986826,2.68636668,3722.5,3722.2,0.55]
[1753491987211,2.68644039,3722.4,3722.3,0.4819]
[1753491987415,2.68644039,3722.4,3722.2,0.55]
[1753491987722,2.68644039,3722.4,3722.2,1.0319]
[1753491988224,2.68644039,3722.4,3722.0,1.0319]
[1753491988426,2.68644039,3722.4,3722.0,0.55]
[1753491988591,2.68644039,3722.4,3722.1,0.4819]
[1753491988990,2.68644039,3722.4,3722.2,0.4819]
[1753491989726,2.442,3722.6,3722.2,0.4819]
[1753491989905,2.68636714,3722.5,3722.2,0.4819]
[1753491990100,5.12831847,3722.6,3722.3,0.4819]
[1753491990316,5.12831847,3722.6,3722.4,0.4819]
[1753491990716,5.12831847,3722.6,3722.5,0.4819]
[1753491991227,5.12831847,3722.6,3722.3,0.4819]
[1753491991400,2.68653009,3722.3,3722.0,0.55]
[1753491991605,2.68653009,3722.3,3722.0,1.0319]
[1753491991905,2.68653009,3722.3,3722.1,0.4819]
[1753491992308,2.68653009,3722.3,3722.0,0.55]
[1753491992309,0.7885,3722.4,3721.8,0.8158]
[1753491992499,0.7885,3722.4,3721.7,0.55]
[1753491992500,0.9467,3722.2,3721.7,0.55]
[1753491992698,2.68673268,3722.0,3721.7,0.55]
[1753491993110,3.15323268,3722.0,3721.7,0.55]
[1753491993522,0.4665,3722.0,3721.7,0.55]
[1753491993741,2.6866719,3722.1,3721.7,0.55]
[1753491994027,3.15308816,3722.2,3721.9,0.55]
[1753491994428,2.68658816,3722.2,3721.9,0.4819]
[1753491995426,2.442,3722.3,3722.1,0.55]
[1753491995593,2.442,3722.3,3722.2,2.3025]
[1753491995998,2.442,3722.3,3722.2,1.8402]
[1753491996298,2.442,3722.5,3722.2,2.3025]
[1753491996508,2.442,3722.5,3722.3,0.4819]
[1753491996927,2.442,3722.5,3722.3,0.4623]
[1753491997123,2.442,3722.5,3722.4,0.9442]
[1753491997623,2.68623606,3722.7,3722.4,0.9442]
[1753491997830,2.68623606,3722.7,3722.4,0.4819]
[1753491998331,2.68630377,3722.6,3722.4,0.4819]
[1753491998532,2.68636668,3722.5,3722.4,0.4819]
[1753491998693,2.68636668,3722.5,3722.2,1.8402]
[1753491998896,2.68636668,3722.5,3722.3,0.4819]
[1753491999417,2.68636668,3722.5,3722.2,1.3583]
[1753491999620,2.68636668,3722.5,3722.2,1.8402]
[1753492000333,2.68636668,3722.5,3722.2,1.3583]
[1753492000624,2.68636668,3722.5,3722.3,0.4819]
[1753492000999,2.68631639,3722.6,3722.3,0.4819]
[1753492001198,2.68631639,3722.6,3722.4,0.4819]
[1753492003319,2.68636668,3722.5,3722.4,0.4819]
[1753492003724,2.68636668,3722.5,3722.2,2.3025]
[1753492003936,2.68636668,3722.5,3722.2,1.8206]
[1753492004237,2.68636668,3722.5,3722.3,0.4819]
[1753492006640,2.68622236,3722.7,3722.2,1.8206]
[1753492006836,2.68622236,3722.7,3722.4,0.4819]
[1753492007228,2.68629793,3722.6,3722.4,0.4819]
[1753492008023,2.68636668,3722.5,3722.4,0.4819]
[1753492008413,2.68643943,3722.4,3722.2,0.55]
[1753492008614,2.68643943,3722.4,3722.3,0.25163941]
[1753492009364,2.68643885,3722.4,3722.3,0.25163941]
[1753492013527,0.9467,3722.7,3722.3,0.25163941]
[1753492013734,3.15272878,3722.7,3722.4,0.25163941]
[1753492014042,0.9195,3722.6,3722.5,0.25163941]
[1753492014238,3.60579452,3722.6,3722.5,0.25163941]
[1753492015213,3.60579452,3722.6,3722.5,0.25180633]
[1753492015649,2.68645749,3722.4,3722.2,0.55]
[1753492015851,2.68645749,3722.4,3722.3,0.25182481]
[1753492016174,3.14455749,3722.4,3722.3,0.25182481]
[1753492016946,2.68645749,3722.4,3722.3,0.25182481]
[1753492019054,2.68645749,3722.4,3722.3,0.74152481]
[1753492019423,2.68645749,3722.4,3722.3,0.25182481]
[1753492019624,5.25537303,3722.4,3722.3,0.25182481]
[1753492020859,2.68683959,3721.9,3721.7,4.2]
[1753492021033,2.68683959,3721.9,3721.8,0.74157523]
[1753492021228,2.68674634,3722.0,3721.8,0.74157523]
[1753492021560,2.68674634,3722.0,3721.9,0.25187523]
[1753492022748,2.442,3722.1,3721.9,0.25187523]
[1753492022953,2.442,3722.2,3722.0,0.80187523]
[1753492023140,2.68648724,3722.4,3722.2,0.55]
[1753492023347,2.442,3722.7,3722.4,0.55]
[1753492023519,2.442,3722.7,3722.5,0.25187523]
[1753492023715,2.68629452,3722.6,3722.1,1.7934]
[1753492023920,2.442,3722.7,3721.9,3.13193122]
[1753492023921,2.68650014,3722.4,3722.2,0.25179984]
[1753492024257,2.68650014,3722.4,3721.8,4.2]
[1753492024258,2.6865832,3722.2,3721.8,4.2]
[1753492024420,0.4581,3722.1,3721.9,0.25182391]
[1753492024620,2.68679521,3722.0,3721.8,4.2]
[1753492024861,2.68679521,3722.0,3721.9,0.25182441]
[1753492025557,2.442,3722.3,3721.9,0.25182441]
[1753492025769,2.68665712,3722.1,3722.0,0.25182441]
[1753492026975,5.12865712,3722.1,3722.0,0.25182441]
[1753492028778,5.58675712,3722.1,3722.0,0.25182441]
[1753492030258,6.5207042,3722.1,3722.0,0.25182441]
[1753492030460,6.9821042,3722.1,3722.0,0.25182441]
[1753492030757,6.5207042,3722.1,3722.0,0.25182441]
[1753492030935,6.8807042,3722.1,3722.0,0.25182441]
[1753492031140,7.8002042,3722.1,3722.0,0.25182441]
[1753492031770,2.68693712,3721.8,3721.5,0.55]
[1753492031993,2.442,3721.8,3721.6,0.25174881]
[1753492032185,5.12887194,3721.8,3721.7,0.25174881]
[1753492032389,5.58697194,3721.8,3721.7,0.25174881]
[1753492032869,5.12887194,3721.8,3721.7,0.25174881]
[1753492033089,7.0036953,3721.8,3721.7,0.25174881]
[1753492033944,7.7662953,3721.8,3721.7,0.25174881]
[1753492038873,2.68730517,3721.2,3721.1,0.4897]
[1753492039075,5.12930517,3721.2,3721.1,0.4897]
[1753492041082,2.68744961,3721.0,3720.9,0.4287]
[1753492041254,5.12944961,3721.0,3720.9,0.4981]
[1753492041451,5.12944961,3721.0,3720.8,0.55]
[1753492041650,5.12944961,3721.0,3720.8,0.9795]
[1753492042052,2.68766629,3720.7,3720.6,0.4981]
[1753492042803,2.442,3720.8,3720.2,0.8285]
[1753492043102,2.68788302,3720.4,3720.3,0.4981]
[1753492043246,5.12988302,3720.4,3720.3,0.4981]
[1753492044581,2.68801127,3720.3,3720.0,0.55]
[1753492044776,2.442,3720.2,3720.0,0.55]
[1753492044980,2.442,3720.2,3720.1,1.0481]
[1753492045184,2.442,3720.2,3720.1,1.4776]
[1753492045384,2.442,3720.2,3720.1,2.3061]
[1753492045786,2.442,3720.3,3720.2,0.55]
[1753492046162,2.442,3720.3,3720.2,1.4776]
[1753492050392,3.2057,3720.3,3720.0,0.55]
[1753492050693,2.68831321,3719.9,3719.4,0.7571]
[1753492050860,2.68831321,3719.9,3719.5,0.4981]
[1753492051063,2.68831321,3719.9,3719.6,1.0481]
[1753492051392,2.68861732,3719.4,3719.3,0.4981]
[1753492052161,2.442,3719.5,3719.3,0.4981]
[1753492052659,0.7637,3719.8,3719.4,0.4981]
[1753492052866,2.68816591,3720.1,3719.5,0.9276]
[1753492053087,2.443,3720.0,3719.6,0.9276]
[1753492053364,2.443,3720.0,3719.7,0.9276]
[1753492053693,3.7637,3720.5,3719.8,0.9276]
[1753492053883,1.207,3720.8,3720.0,0.7571]
[1753492054079,5.13073374,3720.7,3720.1,0.9276]
[1753492054283,5.13073374,3720.7,3720.2,0.4981]
[1753492054584,2.6878136,3720.5,3720.3,0.4981]
[1753492054790,2.443,3720.4,3720.3,0.4981]
[1753492056864,5.8943031,3720.8,3720.3,0.9276]
[1753492057090,3.2067,3720.8,3720.3,0.9276]
[1753492057293,2.443,3720.7,3720.4,4.16545981]
[1753492057591,2.443,3720.7,3720.5,0.9276]
[1753492057986,2.443,3720.7,3720.4,3.23785981]
[1753492058163,2.443,3720.7,3720.6,0.9276]
[1753492058364,2.443,3720.8,3720.6,4.37240452]
[1753492058565,0.7637,3721.4,3720.7,0.9276]
[1753492058884,2.443,3721.3,3720.8,0.9276]
[1753492059064,5.13023445,3721.3,3720.9,0.4981]
[1753492059475,5.13023445,3721.3,3720.8,0.4295]
[1753492059672,5.13023445,3721.3,3721.0,0.4981]
[1753492059888,2.68730712,3721.2,3721.0,0.4981]
[1753492060862,6.00477828,3721.3,3721.0,0.4981]
[1753492061066,5.13025573,3721.3,3721.0,0.4981]
[1753492061267,2.443,3721.3,3721.0,0.4981]
[1753492061467,5.13024061,3721.3,3721.0,0.4981]
[1753492061667,2.68730625,3721.2,3721.0,0.4981]
[1753492061877,5.13024261,3721.3,3721.0,0.4981]
[1753492062078,0.7637,3721.7,3721.1,0.9276]
[1753492062362,2.443,3721.6,3721.2,4.37196917]
[1753492062691,0.7637,3722.1,3721.3,1.4776]
[1753492062893,2.443,3721.8,3721.5,0.55]
[1753492063270,2.443,3721.8,3721.6,0.4981]
[1753492063470,2.68711524,3721.5,3721.2,0.55]
[1753492063695,2.68724164,3721.3,3721.0,4.2]
[1753492063870,2.68723295,3721.3,3721.0,0.55]
[1753492064213,2.68730517,3721.2,3721.0,1.0481]
[1753492064574,2.68724834,3721.3,3721.0,0.55]
[1753492064773,2.68730517,3721.2,3721.1,0.4981]
[1753492065184,2.68744961,3721.0,3720.7,0.55]
[1753492065505,2.68744961,3721.0,3720.7,1.0481]
[1753492065897,5.13039385,3721.1,3720.7,1.0481]
[1753492066309,5.13039385,3721.1,3720.7,0.55]
[1753492066596,5.13039385,3721.1,3720.8,0.4981]
[1753492066787,2.443,3721.1,3720.7,0.55]
[1753492066994,5.13039854,3721.1,3720.9,0.4981]
[1753492069296,5.13039854,3721.1,3720.7,0.55]
[1753492069498,2.68744961,3721.0,3720.7,1.0481]
[1753492069881,2.68744961,3721.0,3720.7,0.55]
[1753492070082,2.68744961,3721.0,3720.8,0.4694]
[1753492070496,2.68752183,3720.9,3720.8,0.4694]
[1753492071616,2.68747195,3721.0,3720.8,0.4694]
[1753492071980,2.68753684,3720.9,3720.7,0.55]
[1753492072180,2.68753684,3720.9,3720.7,1.0083]
[1753492072676,2.68753684,3720.9,3720.8,0.4694]
[1753492073593,2.443,3721.0,3720.8,0.4694]
[1753492073780,2.443,3721.0,3720.8,0.9277]
[1753492074182,2.443,3721.0,3720.9,0.4694]
[1753492075121,5.13044961,3721.0,3720.9,0.4694]
[1753492075984,2.68756493,3720.9,3720.7,0.55]
[1753492076517,5.1304717,3721.0,3720.8,0.4694]
[1753492077079,2.68752183,3720.9,3720.8,0.4694]
[1753492077518,2.68752183,3720.9,3720.7,0.55]
[1753492077717,2.68752183,3720.9,3720.7,1.0194]
[1753492077909,5.13045757,3721.0,3720.7,1.0194]
[1753492078109,5.13045757,3721.0,3720.8,0.4694]
[1753492078831,2.443,3721.0,3720.8,0.4694]
[1753492079126,5.13045725,3721.0,3720.8,0.4694]
[1753492080129,2.443,3721.0,3720.9,0.4694]
[1753492080304,2.443,3721.0,3720.9,0.9277]
[1753492080502,2.442,3721.1,3721.0,0.55]
[1753492080893,5.1292364,3721.3,3721.0,0.9277]
[1753492081092,5.1292364,3721.3,3721.1,0.4583]
[1753492081433,5.1292364,3721.3,3721.2,0.4694]
[1753492082745,5.1292364,3721.3,3721.0,0.4694]
[1753492082746,2.68731312,3721.2,3721.0,0.4694]
[1753492083026,2.68731312,3721.2,3721.1,0.4694]
[1753492083415,2.442,3721.3,3721.1,0.4694]
[1753492083616,2.442,3721.3,3721.1,0.9277]
[1753492083814,2.68722485,3721.4,3721.2,0.9277]
[1753492084015,2.68718501,3721.4,3721.3,0.4694]
[1753492086180,5.12918501,3721.4,3721.3,0.4694]
[1753492086776,2.442,3721.4,3721.3,0.4694]
[1753492086992,5.12916074,3721.4,3721.3,0.9277]
[1753492087286,5.12916074,3721.4,3721.3,0.4694]
[1753492088587,2.68729873,3721.3,3721.1,0.55]
[1753492089755,2.68729873,3721.3,3720.9,0.55]
[1753492089989,2.68729873,3721.3,3721.1,0.4694]
[1753492090195,5.12917414,3721.4,3721.1,0.4694]
[1753492090488,5.12917414,3721.4,3721.0,0.4583]
[1753492090489,5.12917414,3721.4,3721.2,0.4694]
[1753492090782,2.68723295,3721.3,3721.2,0.4694]
[1753492091486,5.12917873,3721.4,3721.2,0.4694]
[1753492092786,2.68723295,3721.3,3721.2,0.4694]
[1753492093490,2.68723295,3721.3,3721.1,0.55]
[1753492093690,2.68723295,3721.3,3721.1,1.0194]
[1753492093988,5.12918503,3721.4,3721.2,0.4694]
[1753492095292,5.12918503,3721.4,3721.1,0.55]
[1753492095492,5.12918503,3721.4,3721.3,0.4694]
[1753492095694,2.68723379,3721.3,3721.1,1.0083]
[1753492096087,2.68723379,3721.3,3721.2,0.4694]
[1753492100020,0.8196,3721.8,3721.2,1.0347]
[1753492100297,5.95285859,3722.1,3721.5,0.55]
[1753492100488,2.68672756,3722.0,3721.5,0.55]
[1753492100798,2.68681828,3721.9,3721.6,0.4847]
[1753492100998,2.68681828,3721.9,3721.5,0.9989]
[1753492101167,2.68687194,3721.8,3721.7,0.4847]
[1753492102996,2.68680472,3721.9,3721.7,0.4847]
[1753492103183,2.68677667,3722.0,3721.8,0.4847]
[1753492103392,2.68656366,3722.3,3721.9,1.3048]
[1753492103579,3.70792052,3722.4,3722.0,0.9336]
[1753492103580,2.442,3722.4,3722.0,0.9336]
[1753492103774,2.442,3722.4,3722.1,0.9336]
[1753492103977,2.442,3722.7,3722.2,1.65244]
[1753492104187,2.442,3722.7,3722.4,0.55]
[1753492104390,2.442,3722.9,3722.4,1.3048]
[1753492104600,2.442,3722.9,3722.6,0.55]
[1753492105078,2.442,3722.9,3722.5,0.55]
[1753492105275,2.442,3722.9,3722.7,0.4847]
[1753492105502,2.442,3722.9,3722.8,0.25130787]
[1753492106600,5.12807805,3722.9,3722.8,0.25130787]
[1753492106799,2.442,3722.9,3722.8,0.25130787]
[1753492108107,2.442,3722.9,3722.8,0.2510045]
[1753492108325,2.68592095,3723.2,3722.8,0.7357045]
[1753492108496,5.12793629,3723.1,3722.9,0.7357045]
[1753492108692,2.442,3723.1,3723.0,0.2510045]
[1753492109310,5.12793376,3723.1,3723.0,0.2510045]
[1753492110915,2.68612992,3722.9,3722.8,0.55]
[1753492111210,2.68607805,3722.9,3722.8,0.25071108]
[1753492111392,3.58167805,3722.9,3722.8,0.25071108]
[1753492112194,3.12287805,3722.9,3722.8,0.25071108]
[1753492113413,5.56387805,3722.9,3722.8,0.25071108]
[1753492113795,2.68617449,3722.8,3722.5,1.0347]
[1753492113998,2.68617449,3722.8,3722.6,0.73528674]
[1753492114319,2.68617449,3722.8,3722.7,0.25058674]
[1753492117799,2.68617449,3722.8,3722.7,0.73528674]
[1753492119230,5.12709755,3722.9,3722.7,0.73528674]
[1753492119550,2.441,3722.9,3722.8,0.25058674]
[1753492119910,2.441,3722.9,3722.8,1.18418674]
[1753492120436,5.12695972,3723.1,3722.8,1.18418674]
[1753492120726,2.441,3723.1,3722.9,1.18418674]
[1753492120923,2.441,3723.1,3723.0,0.25058674]
[1753492121131,2.441,3723.1,3723.0,0.73528674]
[1753492122427,5.12693376,3723.1,3723.0,0.73528674]
[1753492122632,5.12693376,3723.1,3723.0,0.73521018]
[1753492122927,2.441,3723.1,3723.0,0.73521018]
[1753492123736,5.12693376,3723.1,3723.0,0.73521018]
[1753492124334,2.441,3723.1,3723.0,0.73521018]
[1753492125099,2.441,3723.1,3723.0,0.25051018]
[1753492125303,2.441,3723.1,3723.0,0.73521018]
[1753492125604,5.12693376,3723.1,3723.0,0.73521018]
[1753492126005,5.56373376,3723.1,3723.0,0.25051018]
[1753492127046,5.12693376,3723.1,3723.0,0.25051018]
[1753492128408,5.12693376,3723.1,3723.0,0.25083627]
[1753492128737,2.68593376,3723.1,3723.0,0.25083627]
[1753492129149,5.12693376,3723.1,3723.0,0.25083627]
[1753492129647,5.12693376,3723.1,3723.0,0.2509568]
[1753492130044,2.441,3723.1,3723.0,0.2509568]
[1753492130250,2.441,3723.1,3723.0,0.7132568]
[1753492130452,5.12693376,3723.1,3723.0,0.7132568]
[1753492130610,5.12693376,3723.1,3723.0,0.2509568]
[1753492130811,5.12693376,3723.1,3723.0,1.1562568]
[1753492131152,5.12693376,3723.1,3723.0,0.7132568]
[1753492132547,2.68593376,3723.1,3723.0,0.7132568]
[1753492133317,5.12686296,3723.2,3723.0,1.1562568]
[1753492133647,5.12686296,3723.2,3723.1,0.7132568]
[1753492135952,0.7713,3723.6,3723.2,0.55]
[1753492135953,2.441,3723.4,3723.2,0.55]
[1753492136141,0.7558,3723.9,3723.3,1.1562568]
[1753492136142,2.441,3723.5,3723.3,1.1562568]
[1753492136343,2.441,3723.5,3723.4,1.1562568]
[1753492136543,2.68536095,3723.9,3723.4,1.1562568]
[1753492136544,2.441,3723.6,3723.4,1.1562568]
[1753492136740,5.12658505,3723.6,3723.5,0.2509568]
[1753492136932,5.12658505,3723.6,3723.5,0.7132568]
[1753492137254,2.441,3723.6,3723.5,0.7132568]
[1753492137461,5.1265731,3723.6,3723.5,0.7132568]
[1753492137761,5.1265731,3723.6,3723.5,0.2509568]
[1753492140267,2.68570342,3723.5,3723.3,0.4623]
[1753492140469,2.68571735,3723.4,3723.3,1.0123]
[1753492140768,2.68571735,3723.4,3723.3,1.26375766]
[1753492142485,2.68571735,3723.4,3723.3,0.25145766]
[1753492142620,3.13421735,3723.4,3723.3,0.25145766]
[1753492142819,2.68571735,3723.4,3723.3,0.25145766]
[1753492143523,3.61481735,3723.4,3723.3,0.25145766]
[1753492143745,3.13421735,3723.4,3723.3,0.25145766]
[1753492143948,4.52379661,3723.4,3723.3,0.25145766]
[1753492144150,6.96379661,3723.4,3723.3,0.25145766]
[1753492146360,10.78539661,3723.4,3723.3,0.25145766]
[1753492148167,2.6865832,3722.2,3722.1,1.025341]
[1753492148370,2.68652807,3722.3,3722.2,0.55]
[1753492148782,2.68652807,3722.3,3722.2,1.4553]
[1753492148933,2.68641972,3722.5,3722.2,1.4553]
[1753492149133,2.68644894,3722.4,3722.3,0.4623]
[1753492149599,2.68638995,3722.5,3722.3,0.4623]
[1753492149877,5.12622852,3722.7,3722.3,0.4623]
[1753492149878,2.68643885,3722.4,3722.3,0.4623]
[1753492150246,2.68638254,3722.5,3722.3,0.4623]
[1753492150445,2.68643885,3722.4,3722.3,0.4623]
[1753492150751,2.68639204,3722.5,3722.3,0.4623]
[1753492151255,2.68643885,3722.4,3722.3,0.4623]
[1753492151629,2.68638485,3722.5,3722.3,0.4623]
[1753492151833,2.68654,3722.3,3721.9,0.7516]
[1753492152185,0.9291,3722.6,3722.1,0.55]
[1753492152486,0.9291,3722.6,3722.0,0.55]
[1753492152487,2.68659902,3722.2,3722.0,0.55]
[1753492152836,2.68659902,3722.2,3722.0,1.0123]
[1753492153074,2.68659902,3722.2,3722.0,0.55]
[1753492153393,3.3691,3722.5,3722.1,0.4623]
[1753492153597,2.44,3722.5,3722.2,0.4623]
[1753492153763,2.44,3722.5,3722.1,0.443]
[1753492153963,2.44,3722.5,3722.3,0.4623]
[1753492154802,2.68643885,3722.4,3722.3,0.4623]
[1753492155683,2.68643885,3722.4,3722.1,0.9053]
[1753492156019,2.44,3722.5,3722.1,0.4623]
[1753492156298,2.68656345,3722.3,3722.1,0.4623]
[1753492158475,2.68653498,3722.3,3722.1,0.4623]
[1753492158662,2.68653145,3722.3,3722.1,0.4623]
[1753492159061,0.4485,3722.3,3721.9,0.55]
[1753492159265,2.68662964,3722.2,3721.9,1.0123]
[1753492159565,2.68662964,3722.2,3722.0,0.4623]
[1753492159967,2.68652993,3722.3,3722.1,0.4623]
[1753492160179,2.68652993,3722.3,3722.2,0.25116441]
[1753492162705,3.11762993,3722.3,3722.2,0.25116441]
[1753492163070,2.68652993,3722.3,3722.2,0.25116441]
[1753492168185,2.68652993,3722.3,3722.2,0.70456441]
[1753492169402,2.68645545,3722.4,3722.2,0.70456441]
[1753492169613,2.68645545,3722.4,3722.3,0.25116441]
[1753492172326,5.12639252,3722.5,3722.3,0.70456441]
[1753492172492,3.467701,3722.4,3721.9,0.55]
[1753492172683,2.68643885,3722.4,3722.1,0.4534]
[1753492173031,5.12637653,3722.5,3722.2,0.7047441]
[1753492173181,5.12637653,3722.5,3722.3,0.2513441]
[1753492173525,5.12636668,3722.5,3722.4,0.25142739]
[1753492174507,5.12636668,3722.5,3722.2,0.4534]
[1753492174710,2.68651102,3722.3,3722.2,0.4534]
[1753492175013,2.68651102,3722.3,3722.2,0.25149618]
[1753492175706,2.68646146,3722.4,3722.2,0.70489618]
[1753492175915,2.68646146,3722.4,3722.3,0.25149618]
[1753492177913,5.12637589,3722.5,3722.3,1.16809618]
[1753492178218,5.12637589,3722.5,3722.4,0.70489618]
[1753492178383,5.12637589,3722.5,3722.4,0.25149618]
[1753492178588,6.8761489,3722.5,3722.4,0.25149618]
[1753492181123,6.8761489,3722.5,3722.4,0.20149618]
[1753492182605,5.9905489,3722.5,3722.4,0.20149618]
[1753492184405,0.7578,3723.3,3722.4,1.42449618]
[1753492184727,2.68601697,3723.0,3722.5,1.4666]
[1753492184931,5.12601697,3723.0,3722.6,0.9166]
[1753492185519,2.68610316,3722.9,3722.7,0.9166]
[1753492185721,2.68610316,3722.9,3722.8,0.4534]
[1753492186732,2.44,3723.0,3722.8,0.4534]
[1753492186733,5.1260232,3723.0,3722.8,0.9166]
[1753492186903,2.68569345,3723.5,3722.9,0.4534]
[1753492187229,2.44,3723.4,3723.0,1.0132]
[1753492187432,2.44,3723.5,3723.2,0.55]
[1753492187634,2.68607805,3722.9,3722.8,0.0268615]
[1753492187834,0.7963,3722.9,3722.2,0.4534]
[1753492188138,2.68631288,3722.6,3722.2,0.4534]
[1753492188547,2.68631288,3722.6,3722.3,0.4632]
[1753492188715,1.6819,3722.9,3722.3,0.4632]
[1753492189038,2.68636668,3722.5,3722.4,0.4534]
[1753492189512,1.6819,3722.9,3722.1,3.3566]
[1753492189513,0.4311,3722.7,3722.1,3.3566]
[1753492189699,2.6865832,3722.2,3722.1,3.3566]
[1753492189898,2.6865832,3722.2,3722.1,0.9166]
[1753492190118,2.6865832,3722.2,3722.0,0.7696]
[1753492190325,2.68665538,3722.1,3721.9,2.44]
[1753492190526,2.68660235,3722.2,3721.9,2.9048]
[1753492190801,2.68660235,3722.2,3722.0,0.9252]
[1753492191023,2.68629452,3722.6,3722.0,0.9252]
[1753492191233,2.68629452,3722.6,3722.0,0.4648]
[1753492191548,2.6865832,3722.2,3722.1,0.4604]
[1753492191853,2.6865832,3722.2,3722.1,0.9252]
[1753492192006,2.68653235,3722.3,3722.1,0.9252]
[1753492192206,2.68653235,3722.3,3722.1,0.4648]
[1753492192406,2.68653235,3722.3,3722.2,0.4604]
[1753492193136,2.68653235,3722.3,3722.2,0.71199384]
[1753492193439,2.68653235,3722.3,3722.2,0.25159384]
[1753492194853,0.7963,3722.9,3722.2,0.71199384]
[1753492195030,2.68651102,3722.3,3722.2,1.0104]
[1753492195351,2.6864566,3722.4,3722.2,1.261996]
[1753492195552,2.6864566,3722.4,3722.3,0.711996]
[1753492195953,2.6863857,3722.5,3722.3,0.711996]
[1753492196157,2.6863857,3722.5,3722.4,0.251596]
[1753492196341,2.6863857,3722.5,3722.4,0.71199874]
[1753492196532,2.68626965,3722.7,3722.4,1.17679874]
[1753492196735,2.68626965,3722.7,3722.5,0.25159874]
[1753492197044,2.68617034,3722.8,3722.6,1.17679874]
[1753492197244,2.68617034,3722.8,3722.7,0.71199874]
[1753492197450,0.7963,3723.5,3722.7,1.17679874]
[1753492197637,0.7963,3723.5,3722.8,2.00579874]
[1753492197846,2.68599041,3723.1,3722.9,0.25159874]
[1753492198044,2.68599041,3723.1,3723.0,0.25159874]
[1753492198240,2.68599041,3723.1,3723.0,0.71199874]
[1753492198959,2.68586654,3723.2,3723.0,0.71199874]
[1753492199147,2.68581317,3723.3,3723.1,1.17679874]
[1753492199341,2.68581317,3723.3,3723.2,1.17679874]
[1753492200084,2.68581317,3723.3,3723.2,0.25159874]
[1753492200234,2.44,3723.6,3723.2,0.80159874]
[1753492200576,2.6856701,3723.5,3723.3,0.71199874]
[1753492200735,2.6856701,3723.5,3723.4,0.25159874]
[1753492202671,3.2221,3723.9,3723.4,1.17679874]
[1753492202962,2.68542886,3723.8,3723.5,1.17679874]
[1753492203164,5.12536022,3723.9,3723.6,0.71199874]
[1753492203368,2.68542886,3723.8,3723.7,0.25159874]
[1753492204747,3.11945602,3723.9,3723.7,0.25159874]
[1753492204953,5.80481276,3723.9,3723.8,0.25159874]
[1753492208870,5.80481276,3723.9,3723.8,0.71199874]
[1753492209071,5.12535674,3723.9,3723.8,0.71199874]
[1753492209906,5.12535674,3723.9,3723.8,0.25159874]
[1753492212127,2.68550098,3723.7,3723.6,0.4604]
[1753492212422,2.68550098,3723.7,3723.6,0.25103764]
[1753492213078,2.68550098,3723.7,3723.6,0.71143764]
[1753492223036,2.63550098,3723.7,3723.6,0.71143764]
[1753492223552,2.63550098,3723.7,3723.6,1.17023764]
[1753492223748,2.44,3723.9,3723.6,1.17023764]
[1753492224050,2.44,3723.9,3723.7,0.70773764]
[1753492224051,2.68542886,3723.8,3723.7,0.70773764]
[1753492224207,2.68542886,3723.8,3723.7,0.25103764]
[1753492224921,2.68542886,3723.8,3723.7,0.70773764]
[1753492226719,2.68542886,3723.8,3723.7,0.70813169]
[1753492230577,2.68542886,3723.8,3723.7,1.16693169]
[1753492231135,2.68542886,3723.8,3723.7,0.70813169]
[1753492231760,0.7782,3724.2,3723.7,0.25143169]
[1753492231960,3.5045029,3724.9,3724.1,0.55]
[1753492232160,2.68465732,3724.9,3724.3,0.55]
[1753492232334,2.439,3725.1,3724.5,0.55]
[1753492232532,2.68479398,3724.7,3724.6,0.70813169]
[1753492233959,2.68479398,3724.7,3724.6,0.25143169]